[Event "Early-Titled-Tuesday-Blitz-August-29-2023"]
[Site "Chess.com"]
[Date "2023.08.29"]
[Round "3"]
[White "imdvb6307"]
[Black "leopato"]
[Result "0-1"]
[WhiteElo "2391"]
[BlackElo "2143"]
[TimeControl "180+1"]
[EndTime "8:29:10 PDT"]
[Termination "leopato won on time"]

1. c4 {[%clk 0:03:00.9]} 1... e5 {[%clk 0:02:59.2]} 2. Nc3 {[%clk 0:03:00.4]}
2... Nf6 {[%clk 0:02:58.9]} 3. Nf3 {[%clk 0:03:00.2]} 3... Nc6 {[%clk
0:02:58.4]} 4. e3 {[%clk 0:03:00.3]} 4... Bb4 {[%clk 0:02:58]} 5. Qc2 {[%clk
0:03:00.9]} 5... O-O {[%clk 0:02:56.9]} 6. Nd5 {[%clk 0:03:00.5]} 6... d6 {[%clk
0:02:55.2]} 7. a3 {[%clk 0:02:49.3]} 7... Ba5 {[%clk 0:02:47.9]} 8. b4 {[%clk
0:02:47.7]} 8... Bb6 {[%clk 0:02:45.1]} 9. Nxb6 {[%clk 0:02:34.5]} 9... axb6
{[%clk 0:02:43.3]} 10. Bb2 {[%clk 0:02:34.8]} 10... Re8 {[%clk 0:02:40.4]} 11.
b5 {[%clk 0:02:08.8]} 11... Na5 {[%clk 0:02:36.2]} 12. d4 {[%clk 0:02:04.3]}
12... exd4 {[%clk 0:02:26.4]} 13. Nxd4 {[%clk 0:02:04.1]} 13... c5 {[%clk
0:02:08.7]} 14. bxc6 {[%clk 0:02:01.8]} 14... bxc6 {[%clk 0:02:06.4]} 15. Bd3
{[%clk 0:02:01.7]} 15... d5 {[%clk 0:01:32.8]} 16. c5 {[%clk 0:01:48.7]} 16...
bxc5 {[%clk 0:01:24.3]} 17. Qxc5 {[%clk 0:01:48]} 17... Rb8 {[%clk 0:01:04.8]}
18. Qc3 {[%clk 0:01:34.7]} 18... c5 {[%clk 0:00:58.3]} 19. Ne2 {[%clk
0:01:13.8]} 19... d4 {[%clk 0:00:46.5]} 20. exd4 {[%clk 0:01:10.1]} 20... cxd4
{[%clk 0:00:42.7]} 21. Qxd4 {[%clk 0:01:09.8]} 21... Rxb2 {[%clk 0:00:34.4]} 22.
Qxb2 {[%clk 0:01:09.8]} 22... Qxd3 {[%clk 0:00:33.5]} 23. Rd1 {[%clk 0:01:09.6]}
23... Qe4 {[%clk 0:00:24.8]} 24. f3 {[%clk 0:00:16.5]} 24... Qe3 {[%clk
0:00:23.5]} 25. Rf1 {[%clk 0:00:16.5]} 25... Ba6 {[%clk 0:00:22.3]} 26. Rf2
{[%clk 0:00:16.5]} 26... Nc4 {[%clk 0:00:16]} 27. Qc1 {[%clk 0:00:16.3]} 27...
Qe5 {[%clk 0:00:13.8]} 28. Rd3 {[%clk 0:00:11.8]} 28... Ne3 {[%clk 0:00:12.8]}
29. Rc3 {[%clk 0:00:09]} 29... Nxg2+ {[%clk 0:00:10.2]} 30. Rxg2 {[%clk
0:00:08.6]} 30... Bxe2 {[%clk 0:00:09.8]} 31. Kf2 {[%clk 0:00:06.2]} 31... Bxf3
{[%clk 0:00:06.6]} 32. Rxf3 {[%clk 0:00:05.2]} 32... Qe2+ {[%clk 0:00:06]} 33.
Kg3 {[%clk 0:00:05.2]} 33... Nh5+ {[%clk 0:00:05.4]} 34. Kh4 {[%clk 0:00:04.8]}
34... Qxf3 {[%clk 0:00:05.3]} 35. Rg4 {[%clk 0:00:03.1]} 35... Qf2+ {[%clk
0:00:04.3]} 36. Kxh5 {[%clk 0:00:03.5]} 36... g6+ {[%clk 0:00:04.5]} 37. Kg5
{[%clk 0:00:01.3]} 37... f6+ {[%clk 0:00:04.2]} 0-1

[Event "Early-Titled-Tuesday-Blitz-August-29-2023"]
[Site "Chess.com"]
[Date "2023.08.29"]
[Round "3"]
[White "SchmakAttack"]
[Black "Firouzja2003"]
[Result "0-1"]
[WhiteElo "2807"]
[BlackElo "3075"]
[TimeControl "180+1"]
[EndTime "8:29:11 PDT"]
[Termination "Firouzja2003 won on time"]

1. e4 {[%clk 0:03:00.4]} 1... c5 {[%clk 0:02:58.4]} 2. Nf3 {[%clk 0:03:00.3]}
2... d6 {[%clk 0:02:59.1]} 3. d4 {[%clk 0:02:58.9]} 3... cxd4 {[%clk 0:03:00]}
4. Nxd4 {[%clk 0:02:59.6]} 4... Nf6 {[%clk 0:03:00.6]} 5. Nc3 {[%clk 0:02:59.9]}
5... a6 {[%clk 0:02:57.7]} 6. Bg5 {[%clk 0:02:53.2]} 6... e6 {[%clk 0:02:51.2]}
7. f4 {[%clk 0:02:52.8]} 7... Qb6 {[%clk 0:02:33.1]} 8. Qd2 {[%clk 0:02:51.8]}
8... Nc6 {[%clk 0:02:32.6]} 9. Bxf6 {[%clk 0:02:39.8]} 9... gxf6 {[%clk
0:02:32.5]} 10. Nb3 {[%clk 0:02:39.8]} 10... Bd7 {[%clk 0:02:29.5]} 11. O-O-O
{[%clk 0:02:37.1]} 11... O-O-O {[%clk 0:02:28.3]} 12. Kb1 {[%clk 0:02:31.6]}
12... Kb8 {[%clk 0:02:28.4]} 13. Be2 {[%clk 0:02:17.9]} 13... h5 {[%clk
0:02:27.8]} 14. Rhf1 {[%clk 0:02:09.8]} 14... Rc8 {[%clk 0:02:25.2]} 15. a3
{[%clk 0:01:43.7]} 15... Be7 {[%clk 0:02:07.8]} 16. Rf3 {[%clk 0:01:40.1]} 16...
h4 {[%clk 0:02:06]} 17. Qe1 {[%clk 0:01:33.8]} 17... Na5 {[%clk 0:01:50.4]} 18.
Nd5 {[%clk 0:01:22.4]} 18... exd5 {[%clk 0:01:49.9]} 19. Nxa5 {[%clk 0:01:22.7]}
19... Ba4 {[%clk 0:01:23.7]} 20. Bd3 {[%clk 0:01:09.8]} 20... Bd8 {[%clk
0:01:23.8]} 21. Nb3 {[%clk 0:00:42.3]} 21... dxe4 {[%clk 0:01:24.1]} 22. Qxe4
{[%clk 0:00:16.4]} 22... Bc6 {[%clk 0:01:24.4]} 23. Qe2 {[%clk 0:00:16.3]} 23...
Re8 {[%clk 0:01:23.9]} 24. Qf1 {[%clk 0:00:16.3]} 24... Bxf3 {[%clk 0:01:22.9]}
25. Qxf3 {[%clk 0:00:17.2]} 25... Qc6 {[%clk 0:01:19.7]} 26. Qh3 {[%clk
0:00:16.4]} 26... d5 {[%clk 0:01:18.6]} 27. Qxh4 {[%clk 0:00:15.7]} 27... Bb6
{[%clk 0:01:16.1]} 28. Qg4 {[%clk 0:00:15.1]} 28... a5 {[%clk 0:01:12.4]} 29.
Nd2 {[%clk 0:00:09.1]} 29... Re3 {[%clk 0:00:57.5]} 30. Qf5 {[%clk 0:00:04.9]}
30... a4 {[%clk 0:00:52.3]} 31. Nf3 {[%clk 0:00:05]} 31... Qe6 {[%clk
0:00:43.7]} 32. h4 {[%clk 0:00:04.5]} 32... Rg8 {[%clk 0:00:43.7]} 33. Rd2
{[%clk 0:00:03.4]} 33... d4 {[%clk 0:00:36]} 34. Qxe6 {[%clk 0:00:01.8]} 34...
fxe6 {[%clk 0:00:36.2]} 35. h5 {[%clk 0:00:02.1]} 35... e5 {[%clk 0:00:35.2]}
36. fxe5 {[%clk 0:00:02.6]} 36... fxe5 {[%clk 0:00:36.1]} 37. Bg6 {[%clk
0:00:03.3]} 37... Ba5 {[%clk 0:00:21.5]} 38. Rd1 {[%clk 0:00:02.9]} 38... Re2
{[%clk 0:00:19.5]} 39. Nh4 {[%clk 0:00:02.8]} 39... e4 {[%clk 0:00:16.4]} 40. h6
{[%clk 0:00:02.9]} 40... d3 {[%clk 0:00:12.5]} 41. cxd3 {[%clk 0:00:02.5]} 41...
e3 {[%clk 0:00:13.1]} 42. h7 {[%clk 0:00:02.4]} 42... Rh8 {[%clk 0:00:13.6]} 43.
Be4 {[%clk 0:00:01.3]} 43... Rf2 {[%clk 0:00:13.6]} 44. Nf5 {[%clk 0:00:01.2]}
44... e2 {[%clk 0:00:13.8]} 45. Rc1 {[%clk 0:00:01.5]} 45... Rf1 {[%clk
0:00:14.2]} 0-1

[Event "Early-Titled-Tuesday-Blitz-August-29-2023"]
[Site "Chess.com"]
[Date "2023.08.29"]
[Round "3"]
[White "KrokerGuy"]
[Black "Zurability"]
[Result "1-0"]
[WhiteElo "2494"]
[BlackElo "2701"]
[TimeControl "180+1"]
[EndTime "8:29:14 PDT"]
[Termination "KrokerGuy won by resignation"]

1. e4 {[%clk 0:03:00.9]} 1... g6 {[%clk 0:01:57.9]} 2. d4 {[%clk 0:03:00.2]}
2... Bg7 {[%clk 0:01:57.7]} 3. Nc3 {[%clk 0:03:00.6]} 3... d6 {[%clk 0:01:58.3]}
4. Be3 {[%clk 0:02:58.5]} 4... a6 {[%clk 0:01:58.3]} 5. Nf3 {[%clk 0:02:57.2]}
5... b5 {[%clk 0:01:57.7]} 6. Qd2 {[%clk 0:02:57.8]} 6... Bb7 {[%clk 0:01:57.9]}
7. Bd3 {[%clk 0:02:56.9]} 7... Nd7 {[%clk 0:01:56.9]} 8. Ne2 {[%clk 0:02:56.7]}
8... Ngf6 {[%clk 0:01:56.1]} 9. Ng3 {[%clk 0:02:57.3]} 9... c5 {[%clk 0:01:56]}
10. c3 {[%clk 0:02:58]} 10... cxd4 {[%clk 0:01:53.3]} 11. cxd4 {[%clk
0:02:56.7]} 11... Ng4 {[%clk 0:01:53.7]} 12. Bf4 {[%clk 0:02:25.9]} 12... e5
{[%clk 0:01:53.4]} 13. Bg5 {[%clk 0:02:26.5]} 13... f6 {[%clk 0:01:53.3]} 14.
Bh4 {[%clk 0:02:27.2]} 14... O-O {[%clk 0:01:28.4]} 15. Ne2 {[%clk 0:02:04.5]}
15... Nh6 {[%clk 0:01:15.1]} 16. O-O {[%clk 0:01:45.9]} 16... Nf7 {[%clk
0:01:13.7]} 17. Rfd1 {[%clk 0:01:24.3]} 17... Qe7 {[%clk 0:01:09.3]} 18. dxe5
{[%clk 0:01:15.9]} 18... dxe5 {[%clk 0:01:00.1]} 19. Nc3 {[%clk 0:00:56.4]}
19... Nc5 {[%clk 0:00:59.1]} 20. Bc2 {[%clk 0:00:50]} 20... Rfd8 {[%clk
0:00:56.4]} 21. Qe2 {[%clk 0:00:44.6]} 21... Ne6 {[%clk 0:00:55.8]} 22. Bb3
{[%clk 0:00:39.7]} 22... Nf4 {[%clk 0:00:50.6]} 23. Qe3 {[%clk 0:00:39.8]} 23...
Kf8 {[%clk 0:00:43.9]} 24. Bg3 {[%clk 0:00:39.2]} 24... Bh6 {[%clk 0:00:43.8]}
25. Bxf4 {[%clk 0:00:33.5]} 25... exf4 {[%clk 0:00:33.1]} 26. Qb6 {[%clk
0:00:28.5]} 26... Kg7 {[%clk 0:00:18.8]} 27. Nd5 {[%clk 0:00:18.2]} 27... Bxd5
{[%clk 0:00:17.5]} 28. Bxd5 {[%clk 0:00:19.1]} 28... Rab8 {[%clk 0:00:13.3]} 29.
Qxa6 {[%clk 0:00:17.8]} 29... Rd6 {[%clk 0:00:11.5]} 30. Qa3 {[%clk 0:00:16.9]}
30... Rbd8 {[%clk 0:00:09.8]} 31. Nd4 {[%clk 0:00:15.1]} 31... Qd7 {[%clk
0:00:05]} 32. Qb3 {[%clk 0:00:06.4]} 32... Ng5 {[%clk 0:00:03.8]} 33. h4 {[%clk
0:00:05.9]} 33... Nxe4 {[%clk 0:00:04]} 34. Ne6+ {[%clk 0:00:06.2]} 34... Rxe6
{[%clk 0:00:02.5]} 35. Bxe6 {[%clk 0:00:07.1]} 35... Qe7 {[%clk 0:00:03.1]} 36.
Rxd8 {[%clk 0:00:05.9]} 36... Qxd8 {[%clk 0:00:04]} 37. Qxb5 {[%clk 0:00:05.8]}
37... f3 {[%clk 0:00:03.5]} 38. Qb7+ {[%clk 0:00:06]} 38... Kh8 {[%clk
0:00:03.3]} 39. Qxe4 {[%clk 0:00:06.6]} 39... fxg2 {[%clk 0:00:03.9]} 40. Qxg2
{[%clk 0:00:06.3]} 40... Qd6 {[%clk 0:00:03.8]} 41. Re1 {[%clk 0:00:06.6]} 41...
Bf4 {[%clk 0:00:04.2]} 42. Bb3 {[%clk 0:00:07]} 42... Be5 {[%clk 0:00:04.8]} 43.
Qa8+ {[%clk 0:00:07.2]} 43... Kg7 {[%clk 0:00:05.5]} 44. Qd5 {[%clk 0:00:07.8]}
44... Kh6 {[%clk 0:00:06.2]} 45. Qxd6 {[%clk 0:00:08.1]} 45... Bxd6 {[%clk
0:00:05.7]} 46. a4 {[%clk 0:00:08.7]} 46... Bb4 {[%clk 0:00:05.7]} 47. Re4
{[%clk 0:00:09.5]} 1-0

[Event "Early-Titled-Tuesday-Blitz-August-29-2023"]
[Site "Chess.com"]
[Date "2023.08.29"]
[Round "3"]
[White "DanielNaroditsky"]
[Black "ShiroglanTalibov"]
[Result "1-0"]
[WhiteElo "3157"]
[BlackElo "2812"]
[TimeControl "180+1"]
[EndTime "8:29:15 PDT"]
[Termination "DanielNaroditsky won by resignation"]

1. d4 {[%clk 0:03:00.9]} 1... Nf6 {[%clk 0:02:59]} 2. Nc3 {[%clk 0:03:01.3]}
2... e6 {[%clk 0:02:54.8]} 3. Bf4 {[%clk 0:02:59.3]} 3... Bb4 {[%clk 0:02:51.6]}
4. e3 {[%clk 0:02:59.5]} 4... c5 {[%clk 0:02:50.5]} 5. dxc5 {[%clk 0:02:56.5]}
5... Qa5 {[%clk 0:02:45.3]} 6. Ne2 {[%clk 0:02:55.4]} 6... Nd5 {[%clk
0:02:40.8]} 7. Be5 {[%clk 0:02:42.8]} 7... f6 {[%clk 0:02:31.4]} 8. Bd4 {[%clk
0:02:21.3]} 8... Nc6 {[%clk 0:02:20.7]} 9. a3 {[%clk 0:02:04.4]} 9... Nxd4
{[%clk 0:02:18.1]} 10. Qxd4 {[%clk 0:02:04.4]} 10... Bxc5 {[%clk 0:02:01.5]} 11.
Qd2 {[%clk 0:02:03.7]} 11... Nxc3 {[%clk 0:02:00.8]} 12. Nxc3 {[%clk 0:01:58.9]}
12... O-O {[%clk 0:01:58.6]} 13. Rd1 {[%clk 0:01:54.4]} 13... Qd8 {[%clk
0:01:51.2]} 14. Ne4 {[%clk 0:01:51.7]} 14... Be7 {[%clk 0:01:33.8]} 15. Nd6
{[%clk 0:01:51.9]} 15... b6 {[%clk 0:01:32.3]} 16. Be2 {[%clk 0:01:42.3]} 16...
Qc7 {[%clk 0:01:19.1]} 17. O-O {[%clk 0:01:33]} 17... Rd8 {[%clk 0:01:01.7]} 18.
c4 {[%clk 0:01:12.3]} 18... Bb7 {[%clk 0:00:53.7]} 19. Nxb7 {[%clk 0:01:10]}
19... Qxb7 {[%clk 0:00:53]} 20. Bf3 {[%clk 0:01:10.5]} 20... d5 {[%clk
0:00:53.3]} 21. cxd5 {[%clk 0:01:11.4]} 21... Rd6 {[%clk 0:00:23.1]} 22. dxe6
{[%clk 0:01:01.4]} 22... Rxd2 {[%clk 0:00:22.5]} 23. Bxb7 {[%clk 0:01:02.1]}
23... Rad8 {[%clk 0:00:22.8]} 24. Rxd2 {[%clk 0:00:54.7]} 24... Rxd2 {[%clk
0:00:23.7]} 25. Rc1 {[%clk 0:00:55.5]} 25... g6 {[%clk 0:00:14.8]} 26. b4 {[%clk
0:00:49.8]} 26... f5 {[%clk 0:00:14.2]} 27. g3 {[%clk 0:00:35.6]} 27... Kg7
{[%clk 0:00:14.4]} 28. Rc7 {[%clk 0:00:33.6]} 28... Kf6 {[%clk 0:00:14.7]} 29.
Bc8 {[%clk 0:00:28.2]} 29... a5 {[%clk 0:00:14.8]} 30. bxa5 {[%clk 0:00:27.5]}
30... bxa5 {[%clk 0:00:15.7]} 31. a4 {[%clk 0:00:28.2]} 31... Ra2 {[%clk
0:00:14.1]} 32. Bd7 {[%clk 0:00:27.4]} 32... h5 {[%clk 0:00:13]} 33. h4 {[%clk
0:00:26.7]} 33... Rd2 {[%clk 0:00:11.1]} 34. Be8 {[%clk 0:00:23]} 34... Rd5
{[%clk 0:00:09.8]} 35. Bxg6 {[%clk 0:00:18.7]} 35... Bd6 {[%clk 0:00:07.6]} 36.
e7 {[%clk 0:00:19.3]} 36... Re5 {[%clk 0:00:03]} 37. e8=Q {[%clk 0:00:07.4]}
37... Rxe8 {[%clk 0:00:03.9]} 38. Bxe8 {[%clk 0:00:07.9]} 38... Bxc7 {[%clk
0:00:04.3]} 39. Bxh5 {[%clk 0:00:08.7]} 39... Bd6 {[%clk 0:00:04.5]} 40. Kg2
{[%clk 0:00:09.1]} 40... Ke5 {[%clk 0:00:04.5]} 41. Bg6 {[%clk 0:00:08.6]} 41...
Kf6 {[%clk 0:00:04.4]} 42. Be8 {[%clk 0:00:08.8]} 42... Bc7 {[%clk 0:00:04.8]}
43. Bb5 {[%clk 0:00:09]} 43... Ke5 {[%clk 0:00:04.9]} 44. Bd3 {[%clk 0:00:09.5]}
44... Bb8 {[%clk 0:00:03.6]} 45. Kf3 {[%clk 0:00:09.7]} 45... Bc7 {[%clk
0:00:04]} 46. g4 {[%clk 0:00:10]} 1-0

[Event "Early-Titled-Tuesday-Blitz-August-29-2023"]
[Site "Chess.com"]
[Date "2023.08.29"]
[Round "3"]
[White "isaak2009"]
[Black "xamax2000"]
[Result "0-1"]
[WhiteElo "2552"]
[BlackElo "2859"]
[TimeControl "180+1"]
[EndTime "8:29:15 PDT"]
[Termination "xamax2000 won by checkmate"]

1. d4 {[%clk 0:03:00.9]} 1... Nf6 {[%clk 0:02:58.9]} 2. c4 {[%clk 0:03:01.3]}
2... e6 {[%clk 0:02:59.3]} 3. Nc3 {[%clk 0:03:01.9]} 3... d5 {[%clk 0:02:58.5]}
4. cxd5 {[%clk 0:03:01.9]} 4... exd5 {[%clk 0:02:59.4]} 5. Bg5 {[%clk
0:03:01.7]} 5... c6 {[%clk 0:03:00.1]} 6. e3 {[%clk 0:03:01.9]} 6... Bd6 {[%clk
0:03:00.8]} 7. Qc2 {[%clk 0:02:57.8]} 7... O-O {[%clk 0:03:00.9]} 8. Bd3 {[%clk
0:02:57.9]} 8... h6 {[%clk 0:03:01.6]} 9. Bh4 {[%clk 0:02:56]} 9... Re8 {[%clk
0:03:02.3]} 10. Nge2 {[%clk 0:02:52.7]} 10... a5 {[%clk 0:03:02.7]} 11. a3
{[%clk 0:02:51.4]} 11... Na6 {[%clk 0:03:02.8]} 12. Bg3 {[%clk 0:02:11.7]} 12...
Bf8 {[%clk 0:02:59.7]} 13. O-O {[%clk 0:02:06]} 13... Nc7 {[%clk 0:02:52.7]} 14.
Rad1 {[%clk 0:01:57.8]} 14... Bd7 {[%clk 0:02:44.3]} 15. Kh1 {[%clk 0:01:43.1]}
15... Rc8 {[%clk 0:02:23.8]} 16. Qc1 {[%clk 0:01:41.6]} 16... Ne6 {[%clk
0:02:15.4]} 17. f3 {[%clk 0:01:32.7]} 17... c5 {[%clk 0:02:15.2]} 18. Bh4 {[%clk
0:01:27.3]} 18... cxd4 {[%clk 0:01:04.3]} 19. exd4 {[%clk 0:01:28.2]} 19... Be7
{[%clk 0:01:00.2]} 20. Qb1 {[%clk 0:01:27.7]} 20... Kh8 {[%clk 0:00:40.6]} 21.
Bxf6 {[%clk 0:01:14]} 21... Bxf6 {[%clk 0:00:41.5]} 22. Nxd5 {[%clk 0:01:14.6]}
22... Bxd4 {[%clk 0:00:34.6]} 23. Nxd4 {[%clk 0:01:03.1]} 23... Nxd4 {[%clk
0:00:35.5]} 24. Be4 {[%clk 0:01:03.4]} 24... Ne6 {[%clk 0:00:34.1]} 25. b4
{[%clk 0:00:59.2]} 25... axb4 {[%clk 0:00:28.9]} 26. axb4 {[%clk 0:01:00.1]}
26... Bb5 {[%clk 0:00:22.9]} 27. Rfe1 {[%clk 0:00:59.5]} 27... Qh4 {[%clk
0:00:20.5]} 28. Bf5 {[%clk 0:00:51.7]} 28... Rcd8 {[%clk 0:00:18.6]} 29. Bxe6
{[%clk 0:00:41]} 29... Rxe6 {[%clk 0:00:16.3]} 30. Nc7 {[%clk 0:00:17.6]} 30...
Rxe1+ {[%clk 0:00:14.5]} 31. Rxe1 {[%clk 0:00:18.5]} 31... Bc4 {[%clk
0:00:10.2]} 32. h3 {[%clk 0:00:15.1]} 32... Qf4 {[%clk 0:00:08.4]} 33. Ne8
{[%clk 0:00:08.2]} 33... Rd2 {[%clk 0:00:07.4]} 34. Qe4 {[%clk 0:00:04.3]} 34...
Qg3 {[%clk 0:00:04.6]} 35. Rg1 {[%clk 0:00:04.6]} 35... Be6 {[%clk 0:00:03.5]}
36. Qe3 {[%clk 0:00:01.6]} 36... Rb2 {[%clk 0:00:03]} 37. Qd4 {[%clk 0:00:01.7]}
37... Rc2 {[%clk 0:00:02.1]} 38. Qd8 {[%clk 0:00:01.7]} 38... Rc8 {[%clk
0:00:02.1]} 39. Qe7 {[%clk 0:00:02.2]} 39... Bxh3 {[%clk 0:00:02.1]} 40. Nd6
{[%clk 0:00:01.6]} 40... Bxg2+ {[%clk 0:00:01.9]} 41. Rxg2 {[%clk 0:00:02.1]}
41... Rc1+ {[%clk 0:00:02.3]} 42. Rg1 {[%clk 0:00:03]} 42... Rxg1# {[%clk
0:00:02.8]} 0-1

[Event "Early-Titled-Tuesday-Blitz-August-29-2023"]
[Site "Chess.com"]
[Date "2023.08.29"]
[Round "3"]
[White "Carlitus2004"]
[Black "Chessmissile07"]
[Result "1-0"]
[WhiteElo "2521"]
[BlackElo "2830"]
[TimeControl "180+1"]
[EndTime "8:29:16 PDT"]
[Termination "Carlitus2004 won by checkmate"]

1. e4 {[%clk 0:03:00.9]} 1... c5 {[%clk 0:02:59.3]} 2. Nc3 {[%clk 0:02:58.6]}
2... e6 {[%clk 0:02:55.1]} 3. d4 {[%clk 0:02:56.7]} 3... cxd4 {[%clk 0:02:53.8]}
4. Qxd4 {[%clk 0:02:57.5]} 4... Nc6 {[%clk 0:02:53.7]} 5. Qd3 {[%clk 0:02:57.6]}
5... Nf6 {[%clk 0:02:51.1]} 6. Bf4 {[%clk 0:02:57.8]} 6... Bb4 {[%clk
0:02:39.7]} 7. Ne2 {[%clk 0:02:58.2]} 7... d5 {[%clk 0:02:37.8]} 8. a3 {[%clk
0:02:58.1]} 8... Ba5 {[%clk 0:02:23.3]} 9. O-O-O {[%clk 0:02:53.2]} 9... O-O
{[%clk 0:02:17]} 10. exd5 {[%clk 0:02:52]} 10... exd5 {[%clk 0:02:16.9]} 11.
Nxd5 {[%clk 0:02:49.7]} 11... Be6 {[%clk 0:02:11.2]} 12. Nec3 {[%clk 0:02:40]}
12... Bxc3 {[%clk 0:01:41.2]} 13. Nxc3 {[%clk 0:02:36.7]} 13... Qb6 {[%clk
0:01:38.8]} 14. Be3 {[%clk 0:02:25.6]} 14... Qa5 {[%clk 0:01:34.8]} 15. Qb5
{[%clk 0:02:24.9]} 15... Qc7 {[%clk 0:01:35.3]} 16. Be2 {[%clk 0:02:16.8]} 16...
Rad8 {[%clk 0:01:28.7]} 17. h3 {[%clk 0:02:14.9]} 17... Ne7 {[%clk 0:01:24.1]}
18. Bxa7 {[%clk 0:02:08.3]} 18... Ned5 {[%clk 0:01:24.1]} 19. Nxd5 {[%clk
0:02:07.2]} 19... Nxd5 {[%clk 0:01:21]} 20. Bf3 {[%clk 0:02:06.3]} 20... Bf5
{[%clk 0:01:09.8]} 21. Qb3 {[%clk 0:01:42.3]} 21... Qf4+ {[%clk 0:01:02.4]} 22.
Kb1 {[%clk 0:01:32.1]} 22... Rc8 {[%clk 0:01:02.2]} 23. Qxd5 {[%clk 0:01:11.4]}
23... Bxc2+ {[%clk 0:01:00.5]} 24. Ka2 {[%clk 0:01:03.2]} 24... Bxd1 {[%clk
0:00:58.7]} 25. Rxd1 {[%clk 0:01:04.1]} 25... Qa4 {[%clk 0:00:53.5]} 26. Bc5
{[%clk 0:00:50.2]} 26... Rfe8 {[%clk 0:00:48.5]} 27. Bb4 {[%clk 0:00:50]} 27...
Ra8 {[%clk 0:00:32.6]} 28. Bc3 {[%clk 0:00:44.7]} 28... Rec8 {[%clk 0:00:26.3]}
29. Bg4 {[%clk 0:00:36.9]} 29... Re8 {[%clk 0:00:20.9]} 30. Bd7 {[%clk
0:00:34.1]} 30... Qf4 {[%clk 0:00:17.8]} 31. Bxe8 {[%clk 0:00:33.9]} 31... Rxe8
{[%clk 0:00:18.7]} 32. Qd4 {[%clk 0:00:32.3]} 32... Qg5 {[%clk 0:00:18]} 33. h4
{[%clk 0:00:29.9]} 33... Qg6 {[%clk 0:00:17.7]} 34. h5 {[%clk 0:00:29.7]} 34...
Qe6+ {[%clk 0:00:18.3]} 35. Ka1 {[%clk 0:00:27]} 35... f6 {[%clk 0:00:13.9]} 36.
h6 {[%clk 0:00:26]} 36... Qb3 {[%clk 0:00:11]} 37. hxg7 {[%clk 0:00:24.5]} 37...
h5 {[%clk 0:00:11.1]} 38. Rh1 {[%clk 0:00:22.3]} 38... Qb5 {[%clk 0:00:09.4]}
39. Qxf6 {[%clk 0:00:21.5]} 39... Qd5 {[%clk 0:00:09.9]} 40. Qh6 {[%clk
0:00:18.5]} 40... Qxg2 {[%clk 0:00:10.1]} 41. Re1 {[%clk 0:00:11.5]} 41... Rxe1+
{[%clk 0:00:02.7]} 42. Bxe1 {[%clk 0:00:12.4]} 42... Qe4 {[%clk 0:00:02.4]} 43.
Qh8+ {[%clk 0:00:12]} 43... Kf7 {[%clk 0:00:03]} 44. g8=Q+ {[%clk 0:00:12.5]}
44... Ke7 {[%clk 0:00:03.2]} 45. Bb4+ {[%clk 0:00:12.6]} 45... Kd7 {[%clk
0:00:03.4]} 46. Qc8# {[%clk 0:00:12.8]} 1-0

[Event "Early-Titled-Tuesday-Blitz-August-29-2023"]
[Site "Chess.com"]
[Date "2023.08.29"]
[Round "3"]
[White "smilingice"]
[Black "Sunny_Star"]
[Result "1-0"]
[WhiteElo "2379"]
[BlackElo "2075"]
[TimeControl "180+1"]
[EndTime "8:29:17 PDT"]
[Termination "smilingice won on time"]

1. e4 {[%clk 0:02:52.7]} 1... c5 {[%clk 0:02:10.3]} 2. Nf3 {[%clk 0:02:44.3]}
2... Nc6 {[%clk 0:02:09.5]} 3. Bb5 {[%clk 0:02:43.1]} 3... g6 {[%clk 0:02:07.7]}
4. Bxc6 {[%clk 0:02:41.6]} 4... bxc6 {[%clk 0:02:06]} 5. O-O {[%clk 0:02:39.8]}
5... Bg7 {[%clk 0:02:02.2]} 6. Re1 {[%clk 0:02:38.6]} 6... e5 {[%clk 0:02:02.1]}
7. c3 {[%clk 0:02:37.3]} 7... Ne7 {[%clk 0:02:00.6]} 8. d4 {[%clk 0:02:32.3]}
8... cxd4 {[%clk 0:02:00.3]} 9. cxd4 {[%clk 0:02:31.9]} 9... exd4 {[%clk
0:01:58.3]} 10. Nxd4 {[%clk 0:02:31.8]} 10... O-O {[%clk 0:01:53.3]} 11. Nc3
{[%clk 0:02:29.9]} 11... Bb7 {[%clk 0:01:41.2]} 12. Bg5 {[%clk 0:02:20.6]} 12...
Re8 {[%clk 0:01:38]} 13. Qd2 {[%clk 0:02:09.1]} 13... Qa5 {[%clk 0:01:29.6]} 14.
h4 {[%clk 0:01:34.7]} 14... Qe5 {[%clk 0:01:27.5]} 15. Nf3 {[%clk 0:01:28.3]}
15... Qc5 {[%clk 0:01:15.7]} 16. Rac1 {[%clk 0:01:23]} 16... Qb6 {[%clk
0:01:10.9]} 17. e5 {[%clk 0:01:18.5]} 17... Nd5 {[%clk 0:00:30.4]} 18. Ne4
{[%clk 0:01:12.3]} 18... Rab8 {[%clk 0:00:11.3]} 19. Nd6 {[%clk 0:00:51.4]}
19... Rf8 {[%clk 0:00:10.7]} 20. h5 {[%clk 0:00:51.6]} 20... Ba6 {[%clk
0:00:09.1]} 21. Re4 {[%clk 0:00:43.7]} 21... Qxb2 {[%clk 0:00:08.1]} 22. Rc2
{[%clk 0:00:38.2]} 22... Qb1+ {[%clk 0:00:07.6]} 23. Re1 {[%clk 0:00:35.3]}
23... Qb4 {[%clk 0:00:06.9]} 24. Qd1 {[%clk 0:00:26.4]} 24... Rb6 {[%clk
0:00:03.8]} 25. Nd4 {[%clk 0:00:19.6]} 25... Qa5 {[%clk 0:00:03.5]} 26. Bd2
{[%clk 0:00:18.8]} 26... Qa4 {[%clk 0:00:03.1]} 27. N4f5 {[%clk 0:00:13.6]}
27... Bb5 {[%clk 0:00:02.9]} 28. Nxg7 {[%clk 0:00:11.9]} 28... Kxg7 {[%clk
0:00:03.1]} 29. Qc1 {[%clk 0:00:09.9]} 29... Qa6 {[%clk 0:00:02]} 30. Bh6+
{[%clk 0:00:09.5]} 30... Kg8 {[%clk 0:00:02.4]} 31. Bxf8 {[%clk 0:00:09.5]}
31... Kxf8 {[%clk 0:00:02.5]} 32. Qh6+ {[%clk 0:00:09.5]} 32... Kg8 {[%clk
0:00:01.7]} 33. hxg6 {[%clk 0:00:09.7]} 33... hxg6 {[%clk 0:00:01.5]} 34. Ne4
{[%clk 0:00:07.3]} 1-0